Cogmind - Beta 14 *** ADVENTURER MODE // 2024.10.07 @ 12:14:20 Player: Jefffff Result: Destroyed by B-75 Beast with Magnetic Acceleration Cannon Performance ------------- Evolutions (2) 1000 Regions Visited (4) 800 Robots Destroyed (83) 415 Value Destroyed (3115) 3115 Prototype IDs (3) 60 Alien Tech Used (0) 0 Bonus (821) 821 TOTAL SCORE: 6211 Bonus ------- High Alert Combat Kills 121 Entered Garrisons 200 Used RIF Installer 500 Cogmind --------- Core Integrity 0/550 Matter 260/300 Energy 77/100 System Corruption 9% Temperature Warm (126) Movement Core (750) Ox14 Location -8/Garrison Parts ------- > --- POWER (1) -------- (None) > --- PROPULSION (2) --- (None) > --- UTILITY (6) ------ High-capacity Storage Unit Visual Processing Unit Improved Signal Interpreter Hacking Suite > --- WEAPON (2) ------- Beam Rifle > --- INVENTORY (20) --- Heavy Ion Engine Machine Analyzer Transport Network Coupler Relay Coupler [NC] (51) Relay Coupler [NC] (50) Relay Coupler [Swarmer] Relay Coupler [Swarmer] Relay Coupler [Swarmer] Relay Coupler [Grunt] (26) Relay Coupler [Grunt] (35) Relay Coupler [Brawler] (39) Relay Coupler [Sentry] (35) Relay Coupler [Sentry] (40) Relay Coupler [Hunter] (27) Relay Coupler [Hunter] (23) Relay Coupler [Behemoth] (17) Rocket Launcher Peak State ------------ > --- POWER ------------ Heavy Ion Engine > --- PROPULSION ------- Titanium Leg Titanium Leg > --- UTILITY ---------- Improved Heat Sink High-capacity Storage Unit Visual Processing Unit Improved Signal Interpreter Melee Analysis Suite Hacking Suite > --- WEAPON ----------- Particle Gun Heavy Hammer > --- INVENTORY -------- Cooled Ion Engine Cooling System Machine Analyzer Transport Network Coupler Relay Coupler [NC] Relay Coupler [NC] Relay Coupler [Swarmer] Relay Coupler [Swarmer] Relay Coupler [Swarmer] Relay Coupler [Grunt] Relay Coupler [Brawler] Relay Coupler [Sentry] Relay Coupler [Sentry] Relay Coupler [Demolisher] Relay Coupler [Hunter] Relay Coupler [Hunter] Relay Coupler [Behemoth] Beam Rifle Beam Rifle Rocket Launcher [Rating: 34] Favorites ----------- Power Cooled Ion Engine Engine Cooled Ion Engine Power Core Light Nuclear Core Propulsion Improved Aluminum Leg Leg Improved Aluminum Leg Wheel Armored Wheel Utility High-capacity Storage Unit Device Cooling System Storage High-capacity Storage Unit Processor Improved Signal Interpreter Hackware Hacking Suite Protection Improved Light Armor Plating Weapon Heavy Assault Rifle Energy Gun Particle Gun Ballistic Gun Heavy Assault Rifle Impact Weapon Heavy Hammer Build | -11 -10 -9 -8 -8 ------- Run | Yrd Mat Mat Mat Gar Slots Evolved 4 | . . 2 2 . Power . | . . . . . Propulsion . | . . . . . Utility 4 | . . 2 2 . Weapon . | . . . . . Parts Attached 72 | 3 3 31 2 33 Power 12 | . . 6 . 6 Engine 6 | . . 4 . 2 Core 6 | . . 2 . 4 Reactor . | . . . . . Propulsion 12 | 2 . 6 . 4 Treads . | . . . . . Leg 6 | . . 4 . 2 Wheel 6 | 2 . 2 . 2 Hover . | . . . . . Flight . | . . . . . Utility 26 | . 3 9 2 12 Device 7 | . . 4 1 2 Storage 3 | . 2 1 . . Processor 5 | . 1 2 . 2 Hackware 1 | . . . . 1 Protection 10 | . . 2 1 7 Artifact . | . . . . . Weapon 22 | 1 . 10 . 11 Energy Gun 12 | 1 . 2 . 9 Energy Cannon . | . . . . . Ballistic Gun 8 | . . 8 . . Ballistic Cannon . | . . . . . Launcher . | . . . . . Special Weapon . | . . . . . Impact Weapon 2 | . . . . 2 Slashing Weapon . | . . . . . Piercing Weapon . | . . . . . Special Melee Weapon . | . . . . . Unidentified Prototypes 1 | . . 1 . . Parts Lost 28 | . . 3 . 25 Power 5 | . . 2 . 3 Propulsion 5 | . . . . 5 Utility 13 | . . 1 . 12 Weapon 5 | . . . . 5 Highest Loss Streak 8 | . . 1 . 8 To Critical Strikes . | . . . . . Average Slot Usage (%) 98 | . 95 99 92 97 Engine 9 | . 14 10 9 3 Core 1 | . . . . 5 Leg 14 | . . 20 . 4 Wheel 6 | . 28 1 18 13 Device 9 | . . 10 13 9 Storage 11 | . 16 11 9 9 Processor 14 | . 7 15 9 13 Protection 8 | . . 5 15 19 Energy Gun 7 | . 14 5 . 8 Ballistic Gun 13 | . 14 16 18 1 Impact Weapon 1 | . . . . 7 Peak Build Rating 34 | 6 9 24 29 34 Average Rating 22 | 5 7 22 26 28 On Entrance 14 | 6 6 9 23 29 Naked Turns . | . . . . . Heaviest Build 72 | 13 68 63 72 72 Greatest Support 34 | 32 32 34 24 34 Greatest Overweight (x) 5 | . 2 5 2 5 Average Overweight (x) 1 | . . 1 2 1 Largest Inventory Capacity 20 | 8 20 20 20 20 Average Capacity 19 | 8 17 20 20 20 Most Carried 20 | 6 20 20 20 20 Average Carried 18 | 3 12 19 20 18 Final Capacity 20 | 8 20 20 20 20 Final Carried 20 | 1 20 20 20 17 Class Distribution -------------------- 92% | Mutant 5% | Hacker-Mutant Dominant Class ---------------- Mutant | -10/Materials Mutant | -9/Materials Mutant | -8/Materials Mutant | -8/Garrison Resources | -11 -10 -9 -8 -8 ----------- Run | Yrd Mat Mat Mat Gar Matter Collected 1373 | 176 117 697 53 330 Remotely . | . . . . . Salvage Created 3042 | . 272 1838 53 879 Parts 145 | . 18 89 1 37 Haulers Intercepted 8 | . 2 6 . . Recyclers Shooed . | . . . . . Parts Field Recycled . | . . . . . Retrieved Matter . | . . . . . Parts Self-Destructed . | . . . . . Prevented . | . . . . . Kills | -11 -10 -9 -8 -8 ------- Run | Yrd Mat Mat Mat Gar Combat Hostiles Destroyed 60 | . 5 29 1 25 Melee 9 | . . . . 9 Guns 43 | . 5 29 1 8 Classes Destroyed 12 | . 4 6 . 2 Worker 3 | . . 3 . . Hauler 8 | . 2 6 . . Recycler 1 | . . 1 . . Mechanic 1 | . . 1 . . Operator 3 | . . 3 . . Watcher 7 | . 2 5 . . Swarmer 9 | . 3 . . 6 Grunt 33 | . 2 20 1 10 Duelist 1 | . . 1 . . Sentry 12 | . . 8 . 4 Hunter 2 | . . . . 2 Programmer 3 | . . . . 3 Best Kill Streak 5 | . 3 5 1 4 Combat Bots Only 4 | . 3 3 1 4 Max Kills in Single Turn 2 | . 1 1 1 2 Gunslinging 1 | . . . . 1 Exploded . | . . . . . Melee 1 | . . . . 1 Uniques/NPCs Destroyed . | . . . . . Combat | -11 -10 -9 -8 -8 -------- Run | Yrd Mat Mat Mat Gar Hostile Shots Fired 587 | . 38 124 . 425 Missed 152 | . 9 37 . 106 Damage Taken 4867 | . 215 951 . 3701 Core 790 | . 21 213 . 556 Absorbed by Shields 261 | . . . . 261 Redirected to Shielding 37 | . . . . 37 Ignored by Resistances 1491 | . 69 282 . 1140 Regen/Repaired (Parts) 22 | . . 22 . . Core Remaining (%) 79 | 100 91 46 . . Volleys Fired 213 | . 33 142 1 37 Largest 2 | . 2 2 2 2 Hottest 130 | . 70 130 46 121 Shots Fired 419 | . 66 284 2 67 Gun 419 | . 66 284 2 67 Cannon . | . . . . . Launcher . | . . . . . Special . | . . . . . Kinetic 174 | . 33 105 2 34 Thermal 245 | . 33 179 . 33 Explosive . | . . . . . Electromagnetic . | . . . . . Robot Hit Streak 41 | . 19 41 11 27 Robot Miss Streak 6 | . 6 3 . 2 Penetration Max . | . . . . . Secondary Targets 5 | . 1 2 . 2 Max Gunslinging Chain 1 | . 1 1 . 1 Shots Hit Robots 385 | . 50 220 2 113 Core Hits 123 | . 16 76 2 29 Critical Kills 5 | . 1 1 . 3 Critical Parts Destroyed 11 | . . 1 . 10 Critical Strikes 28 | . 4 8 . 16 Burn 11 | . 3 6 . 2 Destroy 4 | . 1 2 . 1 Smash 13 | . . . . 13 Melee Attacks 86 | . . . . 86 Impact 86 | . . . . 86 Slashing . | . . . . . Piercing . | . . . . . Sneak Attacks 1 | . . . . 1 Combat Hostiles 1 | . . . . 1 Follow-up Attacks . | . . . . . Damage Inflicted 6905 | . 526 3327 33 3019 Guns 4662 | . 526 3327 33 776 Cannons . | . . . . . Explosions . | . . . . . Melee 2243 | . . . . 2243 Ramming . | . . . . . Kinetic 1665 | . 174 1021 33 437 Thermal 2997 | . 352 2306 . 339 Explosive . | . . . . . Electromagnetic . | . . . . . Impact 2243 | . . . . 2243 Slashing . | . . . . . Piercing . | . . . . . Highest Corruption 9 | . . . . 9 Average Corruption 8 | . . . . 8 Corruption Purged . | . . . . . Corruption Blocked . | . . . . . Effects 14 | . . . . 14 Message Errors 4 | . . . . 4 Matter Fused 2 | . . . . 2 Heat Flow Errors 5 | . . . . 5 Data Loss (minor) 1 | . . . . 1 Data Loss (major) 2 | . . . . 2 Overload Shots . | . . . . . Overflow Damage 448 | . . . . 448 Projectiles . | . . . . . Explosions . | . . . . . Melee 448 | . . . . 448 Knockbacks 3 | . . . . 3 Impact 3 | . . . . 3 Kinetic . | . . . . . Secondary . | . . . . . Self-Inflicted Damage . | . . . . . Shots . | . . . . . Rammed . | . . . . . Targets Rammed 1 | . . 1 . . Kicked 1 | . . 1 . . Crushed . | . . . . . Highest Temperature 456 | . 204 456 . 240 Average Temperature 98 | . 47 125 . 53 Received Heat Transfer 1986 | . 84 561 . 1341 Effects 6 | . . 6 . . Shutdowns 1 | . . 1 . . Energy Bleed 1 | . . 1 . . Interference 1 | . . 1 . . Matter Decay 2 | . . 2 . . Damage (minor) 1 | . . 1 . . Siege Activations . | . . . . . Robots Corrupted 8 | . . . . 8 Combat Hostiles 8 | . . . . 8 Parts Fried 6 | . . . . 6 Impact Corruptions 25 | . . . . 25 Robots Melted 1 | . . 1 . . Combat Hostiles . | . . . . . Parts Melted 33 | . 3 27 . 3 Heat Transferred 8177 | . 1258 5957 . 962 Parts Sabotaged . | . . . . . Parts Stolen . | . . . . . Parts Stripped . | . . . . . Power Chain Reactions . | . . . . . Alert | -11 -10 -9 -8 -8 ------- Run | Yrd Mat Mat Mat Gar Peak Influence 752 | . 183 318 30 752 Initial 65 | . . 65 . 17 Average 134 | . 66 64 4 403 Maximum Alert Level 3 | . . 1 . 3 Low Security (%) 77 | 100 100 91 100 21 Level 1 11 | . . 8 . 26 Level 2 6 | . . . . 33 Level 3 3 | . . . . 19 Level 4 . | . . . . . Level 5 . | . . . . . High Security . | . . . . . Max Security . | . . . . . Squads Dispatched 5 | . . 4 1 . Investigation 2 | . . 1 1 . Extermination . | . . . . . Reinforcement 3 | . . 3 . . Assault . | . . . . . Garrison . | . . . . . Intercept . | . . . . . Searches Triggered . | . . . . . Construction Impeded . | . . . . . Haulers Reinforced . | . . . . . Active Scanning Responses . | . . . . . Cargo Convoy Interrupts . | . . . . . Stealth | -11 -10 -9 -8 -8 --------- Run | Yrd Mat Mat Mat Gar Distress Signals 6 | . 2 4 . . Communications Jammed . | . . . . . Distress Signals . | . . . . . Times Spotted 90 | . 12 43 3 32 Peak Tracking Total 5 | . 3 4 3 5 Tactical Retreats 8 | . 3 3 . 2 Traps | -11 -10 -9 -8 -8 ------- Run | Yrd Mat Mat Mat Gar Traps Triggered 12 | . . 3 . 9 Indirectly . | . . . . . Trap Hack Attempts . | . . . . . Triggered . | . . . . . Disarmed . | . . . . . Reprogrammed . | . . . . . Reused . | . . . . . Traps Extracted . | . . . . . Installed . | . . . . . Triggered . | . . . . . Machines | -11 -10 -9 -8 -8 ---------- Run | Yrd Mat Mat Mat Gar Machines Disabled 5 | . . 2 . 3 Max in Single Turn 1 | . . 1 . 1 Garrison Relay 3 | . . . . 3 Machines Repaired . | . . . . . Machines Dismantled . | . . . . . Machines Sabotaged . | . . . . . Overloaded Fab Kills . | . . . . . Hacking | -11 -10 -9 -8 -8 --------- Run | Yrd Mat Mat Mat Gar Machines Accessed 24 | . 8 12 2 2 Terminals 19 | . 7 9 1 2 Fabricators . | . . . . . Repair Stations 1 | . . 1 . . Recycling Units 1 | . 1 . . . Scanalyzers 2 | . . 2 . . Garrison Access 1 | . . . 1 . Total Hacks 79 | . 26 42 6 5 Successful 50 | . 18 27 3 2 Failed 29 | . 8 15 3 3 Catastrophic 3 | . . 3 . . Database Lockouts . | . . . . . Manual 36 | . 10 22 4 . Terminals 65 | . 25 32 3 5 Fabricators . | . . . . . Repair Stations 2 | . . 2 . . Recycling Units 1 | . 1 . . . Scanalyzers 8 | . . 8 . . Garrison Access 3 | . . . 3 . Terminal Hacks 22 | . 10 10 . 2 Record 3 | . 1 2 . . Robot Analysis 3 | . 3 . . . Prototype ID Bank 1 | . 1 . . . Emergency Access Points 1 | . . . . 1 Terminal Index 2 | . 1 1 . . Recycling Unit Index 1 | . 1 . . . Unreport Threat 4 | . . 4 . . Dispatch Records 1 | . . 1 . . Assault Status 1 | . 1 . . . Hauler Manifests 2 | . 1 1 . . Registered Prototypes 1 | . 1 . . . Zone Layout 1 | . . 1 . . Security Stations 1 | . . . . 1 Fabricator Hacks . | . . . . . Repair Station Hacks 2 | . . 2 . . Scan Component 1 | . . 1 . . Repair 1 | . . 1 . . Recycling Unit Hacks 1 | . 1 . . . Retrieve Components 1 | . 1 . . . Scanalyzer 7 | . . 7 . . Insert Component 3 | . . 3 . . Analyze 4 | . . 4 . . Garrison Access Hacks 2 | . . . 2 . Unlock Access 1 | . . . 1 . Coupler Status 1 | . . . 1 . Unauthorized Hacks 16 | . 7 8 1 . Terminals 16 | . 7 8 1 . Botnet 15 | . 7 7 1 . Operators 1 | . . 1 . . Fabricators . | . . . . . Repair Stations . | . . . . . Recycling Units . | . . . . . Scanalyzers . | . . . . . Garrison Access . | . . . . . Data Cores Recovered . | . . . . . Used . | . . . . . Hacking Detections 21 | . 6 11 2 2 Full Trace Events 6 | . 1 3 2 . Feedback Events . | . . . . . Feedback Blocked . | . . . . . Robot Schematics Acquired . | . . . . . Robots Built . | . . . . . Authchips . | . . . . . Time . | . . . . . Total Robot Build Rating . | . . . . . Part Schematics Acquired 3 | . . 3 . . Parts Built . | . . . . . Authchips . | . . . . . Time . | . . . . . Total Part Build Rating . | . . . . . Parts Repaired 1 | . . 1 . . Time 32 | . . 32 . . Parts Recycled . | . . . . . Recycled Matter . | . . . . . Retrieved Matter . | . . . . . Retrieved Components 2 | . 2 . . . Parts Scanalyzed 3 | . . 3 . . Part Schematics Acquired 3 | . . 3 . . Parts Damaged . | . . . . . Bothacking | -11 -10 -9 -8 -8 ------------ Run | Yrd Mat Mat Mat Gar Used RIF Installer 1 | . . . . 1 Robots Hacked . | . . . . . Non-combat . | . . . . . Combat . | . . . . . Robot Hacks Applied . | . . . . . Relay Couplers Released 11 | . . . . 11 Machine Destruction 11 | . . . . 11 Fabnet Peak Effective % . | . . . . . Robots Rewired . | . . . . . Allies Hacked . | . . . . . Hacks Repelled . | . . . . . Allies | -11 -10 -9 -8 -8 -------- Run | Yrd Mat Mat Mat Gar Total Allies . | . . . . . Largest Group . | . . . . . Highest-Rated Group . | . . . . . Highest-Rated Ally . | . . . . . Total Orders . | . . . . . Ally Attacks . | . . . . . Total Damage . | . . . . . Kills . | . . . . . Allies Corrupted . | . . . . . Allies Melted . | . . . . . Intel | -11 -10 -9 -8 -8 ------- Run | Yrd Mat Mat Mat Gar Robot Analysis Total 3 | . 3 . . . Derelict Logs Recovered . | . . . . . Drone Launches . | . . . . . Drone Recoveries . | . . . . . Exploration | -11 -10 -9 -8 -8 ------------- Run | Yrd Mat Mat Mat Gar Turns Passed 7203 | 8 770 4875 64 1486 Spaces Moved 3202 | 3 538 1838 49 774 Core . | . . . . . Treads . | . . . . . Legs 1788 | . . 1664 . 124 Wheels 1414 | 3 538 174 49 650 Hover . | . . . . . Flight . | . . . . . Fastest Speed 100 | 100 100 115 120 120 Average Speed 184 | 100 112 228 120 132 Slowest Speed 270 | 100 130 270 120 200 Overloaded Moves . | . . . . . Propulsion Burnouts . | . . . . . Robots Hopped . | . . . . . Cave-ins Triggered . | . . . . . Exploration Rate (%) 50 | 2 82 96 4 68 Regions Visited 4 Branch Regions . Pre-discovered Areas . | . . . . . Known Exits Taken 2 | . . 1 1 . Unknown Exits Taken 2 | 1 1 . . . Scrap Searched . | . . . . . Spaces Dug 1 | . . . . 1 Terrain Destroyed 1 | . . . . 1 Melee 1 | . . . . 1 Projectile . | . . . . . AOE . | . . . . . Terrain Rammed . | . . . . . Walls Destroyed . | . . . . . Machines Disabled . | . . . . . Actions | -11 -10 -9 -8 -8 --------- Run | Yrd Mat Mat Mat Gar Total 3982 | 10 641 2263 51 1017 Wait 226 | . 49 175 . 2 Move 3198 | 2 537 1837 48 774 Hop . | . . . . . Pick Up 79 | . 18 35 . 26 Fast Attach 15 | . 2 10 2 1 Attach 29 | 3 . 4 . 22 Detach . | . . . . . Swap 28 | . 1 17 . 10 Drop 61 | 5 1 42 . 13 Fire 213 | . 33 142 1 37 Melee 86 | . . . . 86 Ram . | . . . . . Kick 1 | . . 1 . . Crush . | . . . . . Escape Stasis 46 | . . . . 46 Rewire . | . . . . . Trap . | . . . . . Miscellaneous . | . . . . . Route ------- -11/Scrapyard -10/Materials (discovered 4 exits: *Mat x3 / [*Min]) -9/Materials (discovered 4 exits: *Mat x3 / [*Min]) -8/Materials -8/Garrison (discovered 2 exits: [*Mat x2]) History --------- Turn | Location | Event 7 | -11/Scrapyard | Discovered new exit (range 0) 9 | -11/Scrapyard | Entered Materials 101 | -10/Materials | Discovered new exit (range 6) 264 | -10/Materials | Discovered new exit (range 4) 318 | -10/Materials | Build established: Mutant 331 | -10/Materials | Discovered new exit (range 15) 725 | -10/Materials | Discovered new exit (range 16) 779 | -10/Materials | Entered another Materials area 779 | -9/Materials | Evolved 2 slots: Utility x2 2096 | -9/Materials | Discovered new exit (range 16) 2155 | -9/Materials | Core integrity fell below 50% 2200 | -9/Materials | Discovered new exit (range 15) 2436 | -9/Materials | Discovered new exit (range 14) 3436 | -9/Materials | Discovered new exit (range 13) 5527 | -9/Materials | Repaired Cooling System 5653 | -9/Materials | Identified exit to Materials 5654 | -9/Materials | Entered another Materials area 5654 | -8/Materials | Evolved 2 slots: Utility x2 5711 | -8/Materials | Identified exit to Garrison 5718 | -8/Materials | Entered Garrison 5798 | -8/Garrison | Triggered checkpoint 5798 | -8/Garrison | Triggered checkpoint 5871 | -8/Garrison | Lost 3 parts (2u1w) 5984 | -8/Garrison | Garrison Relay disabled 5998 | -8/Garrison | Triggered checkpoint 6132 | -8/Garrison | Discovered new exit (range 10) 6270 | -8/Garrison | Triggered checkpoint 6397 | -8/Garrison | Learned Materials security intel 6410 | -8/Garrison | Triggered checkpoint 6494 | -8/Garrison | Discovered new exit (range 14) 6581 | -8/Garrison | Garrison Relay disabled 6632 | -8/Garrison | Triggered checkpoint 6734 | -8/Garrison | Garrison Relay disabled 6744 | -8/Garrison | Triggered checkpoint 6775 | -8/Garrison | Installed Relay Interface Framework 6833 | -8/Garrison | Core integrity fell below 50% 6901 | -8/Garrison | Lost 8 parts (1p2n4u1w) 7117 | -8/Garrison | Build established: Hacker-Mutant 7168 | -8/Garrison | Spotted B-75 Beast 7196 | -8/Garrison | Core integrity fell below 20% 7204 | -8/Garrison | Destroyed by B-75 Beast with Magnetic Acceleration Cannon Last Messages --------------- 07176_ Knocked back. 07179_ B-75 Beast misfires. 07179_ B-75 Beast suffers critical hit (Smash). 07182_ Cooling System blasted off. 07185_ Titanium Leg destroyed. 07185_ Knocked back. 07188_ Hvy. Hammer destroyed. 07189_ Titanium Leg destroyed. 07192_ B-75 Beast misfires. 07195_ Particle Gun blasted off. 07195_ Critical hit (Burn: +37). 07198_ Imp. Ion Engine melted. 07198_ Y-45 Defender destroyed. 07198_ Knocked back. 07201_ Cld. Ion Engine destroyed. 07201_ Knocked back. 07202_ B-75 Beast suffers critical hit (Burn). 07204_ Beam Rifle destroyed. 07204_ Melee Analysis Suite destroyed. 07204_ Critical hit (Blast). Map ----- +----------------------------------------------------+ | ????????????????????????# ## ## ########### | | ??????????????????????### ## ##% ###???????? | | ??????????????????????# % #???????? | | ??????????????????????# [ "%#???????? | | ??????????????????????# =% % #???????? | | ??????????????????????# = #???????? | | ??????????????????????### ##%! ## ###???????? | | ???????????????########## ##[ ^## ########??? | | ???????????????# + = = = " + | | ???????????????# " %* % = "%" + | | ???????????????# ####### ==[ ######## # | | ???????????????# #?????# ##= ######?????????? | | ???????????????# #?????# ## #??????????????? | | ???????????????# #?????# ##+####??????????????? | | ???????????????# ####### #????????????????????? | | ???????????????# + +????????????????????? | | ???????????????# ####### #????????????????????? | | ???????????????# #?????# #????????????????????? | | ################+"####### #????????????????????? | | + + #????????????????????? | | " " #????????????????????? | | ### ! #????????????????????? | | #?# ##################;+##????????????????????? | | #?# #?????????????#### ##????????????????????? | | #?# #?????????????# #?????????????????+??? | | #?# #???????????### % @ ###??????????????????? | | #?# #???????????#"" Y ! ""#????????????+?????? | | #?# #???????????#"! %[%%["#??????????????????? | | #?# #???????????#"* ##!#=*"#??????+???????????? | | #?# #???????????#"* #BB# ="#??????????????????? | | #?# #???????????#"! #BB# ="#??????????????????? | | #?# #???????????#"[?# # ["#????????????+????+? | | #?# #???????????#"!? !"#??????????????????? | | #?# #???????????#"? ""#??????????????????? | | ### #???????????#"?"][!*"""#??????????????????? | | #?????????????"""""""""#???????+??????????? | | #????????????###########??????????????????? | | #### #?????????????????????????????????????????? | | ???# #?????????????????????????????????????????? | | ???# #????????????????????????????++???+???????? | | #### #?????????????????????????????????????????? | | #?????????????????????????????????????????? | | #?????????????????????????????????????????? | | #?????????????????????????????????????????? | | ######"#?????????????????????????????????????????? | | ??#### ####??????????????????????????????????????? | | ??# # # #??????????????????????????????????????? | | ??#[ +%+ #??????????????????????????????????????? | | ??##+# #+##??????????????????????????????????????? | | ??# !#!# #??????????????????????????????????????? | +----------------------------------------------------+ Best States ------------- Heat Dissipation 53 Energy Generation 14 Energy Capacity 280 Matter Stores 300 Matter Capacity 300 Sight Range 18 Robot Scan Range 14 Terrain Scan Density 10 Armor Coverage 525 Resistance: KI 20 Resistance: TH 20 Resistance: EX 20 Resistance: EM 20 Resistance: I 20 Resistance: S 20 Resistance: P 20 Core Shielding 20 Evasion (%) 40 Targeting Accuracy 5 Melee Accuracy 5 Recoil Reduction 4 Offensive Hacking 20 Item Schematics ----------------- Titanium Leg | -9/Materials | Scanalyzed Lgt. Armor Plating | -9/Materials | Scanalyzed Imp. Aluminum Leg | -9/Materials | Scanalyzed Robot Schematics ------------------ None Fabricated ------------ Nothing Alien Tech Used ----------------- None Achievements -------------- None Challenges ------------ None Game ------ Seed ShockBiometalExtractor Manual? 0 Play Time 00:40:40 Cumulative 142.1 hours Start 2024.10.05 @ 14:10:39 End 2024.10.07 @ 12:14:20 Sessions 3 Manual Loads 0 Difficulty Adventurer Special Mode None Game No. 192 Rogue 0 Adventurer 192 Explorer 0 Win Type - Total 0 Types 0/0/0/0/0/0/0/0/0 Lore% 52 Gallery% 52 Achievement% 40 Wizard Run 0 Options --------- Layout 2 ASCII 0 Keyboard 0 Movement Mouse Keybinds 0 Fullscreen 2 Font 48/Smallcaps Map View 50x44 Zoom Use 0% Tactical HUD 1 Map Filters NONE Filters NONE Steam 1 RUN: c5186f17-52bd-42c4-816d-265993ff28ec